bitfinex-derivatives/quotes_BTCF0:USTF0_20230702
["timestamp","ask_amount","ask_price","bid_price","bid_amount"]
[1688275912471,0.26870017,30540.0,30539.0,0.23853085]
[1688275913066,0.28692986,30540.0,30539.0,0.21207131]
[1688275913566,0.26870017,30540.0,30539.0,0.21207131]
[1688275917863,0.26870017,30540.0,30539.0,0.1861]
[1688275919974,0.26870017,30540.0,30539.0,0.18211516]
[1688275920269,0.26870017,30540.0,30539.0,0.16462649]
[1688275920474,0.26870017,30540.0,30539.0,0.15660649]
[1688275921772,0.26870017,30540.0,30539.0,0.51740649]
[1688275922268,0.26870017,30540.0,30539.0,0.49103649]
[1688275923366,0.26870017,30540.0,30539.0,0.545432]
[1688275925275,0.26870017,30540.0,30539.0,0.49103649]
[1688275928380,0.26870017,30540.0,30539.0,0.52811563]
[1688275928674,0.26870017,30540.0,30539.0,0.50988594]
[1688275929070,0.26870017,30540.0,30539.0,0.52811563]
[1688275929377,0.26870017,30540.0,30539.0,0.50988594]
[1688275929973,0.26870017,30540.0,30539.0,0.52811563]
[1688275930169,0.26870017,30540.0,30539.0,0.50988594]
[1688275931781,0.26870017,30540.0,30539.0,0.52811563]
[1688275931983,0.26870017,30540.0,30539.0,0.50988594]
[1688275932183,0.26870017,30540.0,30539.0,0.48583111]
[1688275932593,0.26870017,30540.0,30539.0,0.46354547]
[1688275932886,0.28692986,30540.0,30539.0,0.43746274]
[1688275933076,0.26870017,30540.0,30539.0,0.43746274]
[1688275933276,0.26870017,30540.0,30539.0,0.38471131]
[1688275935085,0.26870017,30540.0,30539.0,0.42179045]
[1688275935578,0.26849468,30540.0,30539.0,0.35531826]
[1688275935783,0.26849468,30540.0,30539.0,0.37496526]
[1688275936185,0.26849468,30540.0,30539.0,0.33746874]
[1688275936384,0.28672437,30540.0,30539.0,0.33746874]
[1688275936584,0.26849468,30540.0,30539.0,0.33746874]
[1688275938788,0.28672437,30540.0,30539.0,0.019647]
[1688275939178,0.26849468,30540.0,30539.0,0.019647]
[1688275940689,0.28672437,30540.0,30539.0,0.019647]
[1688275940892,0.26849468,30540.0,30539.0,0.019647]
[1688275941486,0.26849468,30540.0,30539.0,0.0158573]
[1688275941885,0.28672437,30540.0,30539.0,0.019647]
[1688275942283,0.28672437,30540.0,30539.0,0.01768231]
[1688275942591,0.28672437,30540.0,30539.0,0.019647]
[1688275944000,0.26849468,30540.0,30539.0,0.019647]
[1688275945193,0.26849468,30540.0,30539.0,0.0098274]
[1688275945390,0.28672437,30540.0,30539.0,0.0098274]
[1688275948300,0.28672437,30540.0,30539.0,0.00884467]
[1688275949598,0.26849468,30540.0,30539.0,0.00884467]
[1688275950502,0.28672437,30540.0,30539.0,0.00884467]
[1688275951002,0.28672437,30540.0,30539.0,0.019647]
[1688275951406,0.28672437,30540.0,30539.0,0.01681726]
[1688275951703,0.28672437,30540.0,30539.0,0.019647]
[1688275954303,0.28672437,30540.0,30539.0,0.01768231]
[1688275960407,0.28672437,30540.0,30539.0,0.01591408]
[1688275966210,0.26849468,30540.0,30538.0,0.55765169]
[1688275966412,0.22922969,30539.0,30538.0,0.55765169]
[1688275966703,0.211,30539.0,30538.0,0.25579469]
[1688275967500,0.22922969,30539.0,30538.0,0.25579469]
[1688275968101,0.211,30539.0,30538.0,0.25579469]
[1688275969109,0.22922969,30539.0,30538.0,0.23079469]
[1688275969409,0.22922969,30539.0,30538.0,0.058943]
[1688275972202,0.22922969,30539.0,30537.0,0.380448]
[1688275972203,0.01822969,30538.0,30533.0,0.35217703]
[1688275972404,0.3608,30537.0,30536.0,0.058945]
[1688275972610,0.803949,30537.0,30536.0,0.058945]
[1688275972810,0.82217869,30537.0,30536.0,0.058945]
[1688275973305,0.82217869,30537.0,30536.0,0.02412933]
[1688275973712,0.46137869,30537.0,30536.0,0.02412933]
[1688275974113,0.1339071,30537.0,30536.0,0.02412933]
[1688275974506,0.02743737,30539.0,30536.0,0.02412933]
[1688275974706,0.4236,30537.0,30536.0,0.02412933]
[1688275975518,0.7565,30537.0,30536.0,0.02412933]
[1688275976610,0.7565,30537.0,30536.0,0.058945]
[1688275978207,0.7565,30537.0,30536.0,0.04050848]
[1688275979211,0.7565,30537.0,30536.0,0.058945]
[1688275980130,0.7565,30537.0,30534.0,0.04417233]
[1688275980324,0.3329,30537.0,30536.0,0.058945]
[1688275980526,0.7573,30537.0,30536.0,0.058945]
[1688275980723,0.7573,30537.0,30536.0,0.04884584]
[1688275981027,0.7573,30537.0,30536.0,0.03386727]
[1688275981524,0.7573,30537.0,30534.0,0.03882133]
[1688275981721,0.3329,30537.0,30536.0,0.058945]
[1688275981921,0.7577,30537.0,30536.0,0.058945]
[1688275983438,0.5453,30537.0,30536.0,0.058945]
[1688275984028,0.5453,30537.0,30536.0,0.0447479]
[1688275984326,0.5453,30537.0,30536.0,0.05051204]
[1688275985630,0.61172204,30537.0,30536.0,0.05051204]
[1688275986336,0.61172204,30537.0,30536.0,0.02434671]
[1688275987438,0.61172204,30537.0,30535.0,0.37979571]
[1688275987634,0.211,30536.0,30535.0,0.37979571]
[1688275988739,0.39932204,30537.0,30535.0,0.45304067]
[1688275988740,0.28284354,30537.0,30535.0,0.45304067]
[1688275989037,0.2124,30536.0,30535.0,0.37979571]
[1688275989242,0.16777341,30537.0,30535.0,0.37979571]
[1688275989544,0.2111,30536.0,30535.0,0.37979571]
[1688275989733,0.05139486,30537.0,30535.0,0.43419122]
[1688275989934,0.2124,30536.0,30535.0,0.37979571]
[1688275990135,1.17416051,30539.0,30535.0,0.37979571]
[1688275990444,0.212,30536.0,30535.0,0.36907009]
[1688275990742,0.01884945,30538.0,30535.0,0.36907009]
[1688275990743,1.17416051,30539.0,30536.0,0.01884945]
[1688275990942,1.17416051,30539.0,30537.0,0.019649]
[1688275991249,0.4244,30538.0,30537.0,0.019649]
[1688275991543,0.09694985,30538.0,30536.0,0.03838613]
[1688275991838,1.39713576,30540.0,30536.0,0.03838613]
[1688275992045,0.019648,30539.0,30536.0,0.03838613]
[1688275992243,0.2111,30537.0,30536.0,0.049122]
[1688275992635,0.2111,30537.0,30536.0,0.01997242]
[1688275992832,0.22879194,30537.0,30536.0,0.01997242]
[1688275994444,0.2111,30537.0,30536.0,0.049122]
[1688275995448,0.22879194,30537.0,30536.0,0.049122]
[1688275996351,0.22879194,30537.0,30536.0,0.04420981]
[1688275996550,0.22879194,30537.0,30536.0,0.049122]
[1688275998539,0.22879194,30537.0,30536.0,0.02335591]
[1688276000450,0.2111,30537.0,30535.0,0.72976356]
[1688276000743,0.3202,30538.0,30536.0,0.049122]
[1688276000949,0.23009194,30537.0,30536.0,0.049122]
[1688276001349,0.23009194,30537.0,30536.0,0.02286743]
[1688276002244,0.23009194,30537.0,30536.0,0.02058069]
[1688276002640,0.01769194,30536.0,30535.0,0.7238306]
[1688276002948,0.22889194,30536.0,30535.0,0.6988306]
[1688276004143,0.22161608,30538.0,30535.0,0.71706029]
[1688276004441,0.212,30536.0,30535.0,0.6988306]
[1688276004648,0.10614022,30538.0,30535.0,0.6988306]
[1688276004851,0.2124,30536.0,30535.0,0.67259085]
[1688276005044,0.05509375,30538.0,30535.0,0.73153785]
[1688276005246,0.2112,30536.0,30535.0,0.73153785]
[1688276005441,0.12303507,30539.0,30535.0,0.73153785]
[1688276005644,0.212,30536.0,30535.0,0.72352404]
[1688276006243,0.212,30536.0,30535.0,0.71852404]
[1688276007255,0.212,30536.0,30535.0,0.69179404]
[1688276007441,0.212,30536.0,30535.0,0.68879404]
[1688276007640,0.212,30536.0,30535.0,0.68079404]
[1688276008251,0.212,30536.0,30535.0,0.61271464]
[1688276009346,0.212,30536.0,30535.0,0.58582056]
[1688276009755,0.212,30536.0,30535.0,0.57493962]
[1688276010346,0.212,30536.0,30535.0,0.55251652]
[1688276012258,0.212,30536.0,30535.0,0.52651652]
[1688276014059,0.212,30536.0,30535.0,0.16159878]
[1688276014256,0.212,30536.0,30535.0,0.50427401]
[1688276014663,0.212,30536.0,30535.0,0.50838875]
[1688276015555,0.212,30536.0,30535.0,0.48338875]
[1688276018752,0.212,30536.0,30535.0,0.44667689]
[1688276019465,0.23765065,30536.0,30535.0,0.42119951]
[1688276020252,0.23765065,30536.0,30535.0,0.36491474]
[1688276020464,0.23765065,30536.0,30535.0,0.42386174]
[1688276020756,0.23765065,30536.0,30535.0,0.40525358]
[1688276020965,0.23765065,30536.0,30535.0,0.40833524]
[1688276022162,0.30201319,30536.0,30535.0,0.40833524]
[1688276022759,0.30201319,30536.0,30535.0,0.06202866]
[1688276022960,0.30201319,30536.0,30535.0,0.42282866]
[1688276023365,0.40462045,30539.0,30535.0,0.47722417]
[1688276023550,0.2124,30536.0,30535.0,0.42282866]
[1688276023755,0.28954064,30539.0,30536.0,0.01884945]
[1688276024066,0.31602542,30539.0,30537.0,0.02272836]
[1688276024367,0.4235,30538.0,30536.0,0.04688354]
[1688276024663,0.22060141,30539.0,30537.0,0.019649]
[1688276024857,0.4244,30538.0,30537.0,0.019649]
[1688276026163,0.09693913,30538.0,30537.0,0.019649]
[1688276026365,0.09693913,30538.0,30536.0,0.049122]
[1688276026569,2.71241884,30540.0,30537.0,0.019649]
[1688276026570,2.70249851,30540.0,30537.0,0.019649]
[1688276026758,0.4236,30538.0,30537.0,0.019649]
[1688276026967,0.096147,30538.0,30537.0,0.019649]
[1688276031768,0.308347,30538.0,30537.0,0.019649]
[1688276032273,0.308347,30538.0,30535.0,0.40969591]
[1688276032573,0.2111,30536.0,30535.0,0.40969591]
[1688276037267,0.2111,30536.0,30535.0,0.44677505]
[1688276037574,0.2111,30536.0,30535.0,0.42854536]
[1688276037876,0.2111,30536.0,30535.0,0.44677505]
[1688276038378,0.2111,30536.0,30535.0,0.36989301]
[1688276038564,0.2111,30536.0,30535.0,0.42884001]
[1688276038973,0.2111,30536.0,30535.0,0.4470697]
[1688276039569,0.2111,30536.0,30535.0,0.42884001]
[1688276041576,0.2111,30536.0,30535.0,0.75774001]
[1688276043092,0.2111,30536.0,30535.0,0.7759697]
[1688276044478,0.2111,30536.0,30535.0,0.6547439]
[1688276044681,0.2111,30536.0,30535.0,0.67297359]
[1688276044981,0.27693815,30536.0,30535.0,0.69182304]
[1688276045276,0.30283269,30536.0,30535.0,0.69182304]
[1688276046376,1.03470623,30540.0,30535.0,0.69832304]
[1688276046377,1.00049122,30540.0,30535.0,0.69832304]
[1688276046672,1.00049122,30540.0,30539.0,0.3608]
[1688276046982,1.21159122,30540.0,30539.0,0.35636774]
[1688276047182,1.31325445,30540.0,30539.0,0.37459743]
[1688276047378,1.33425445,30540.0,30539.0,0.37459743]
[1688276047981,1.36092112,30540.0,30539.0,0.37459743]
[1688276048479,1.36992112,30540.0,30539.0,0.019647]
[1688276049183,1.48788764,30540.0,30539.0,0.019647]
[1688276049880,1.48788764,30540.0,30539.0,0.331247]
[1688276050385,1.48788764,30540.0,30539.0,0.21191394]
[1688276050686,1.48788764,30540.0,30539.0,0.23156094]
[1688276051684,1.48788764,30540.0,30539.0,0.2194837]
[1688276051881,1.48788764,30540.0,30539.0,0.17938953]
[1688276056490,1.48788764,30540.0,30539.0,0.0172702]
[1688276056687,1.48788764,30540.0,30539.0,0.01198125]
[1688276056992,1.48788764,30540.0,30539.0,0.00633762]
[1688276057190,1.48788764,30540.0,30539.0,0.019647]
[1688276063703,1.48788764,30540.0,30539.0,0.01547968]
[1688276066309,1.48788764,30540.0,30539.0,0.019647]
[1688276068403,1.48788764,30540.0,30538.0,0.26855197]
[1688276068600,1.17512441,30540.0,30539.0,0.019647]
[1688276068903,1.48798957,30540.0,30539.0,0.019647]
[1688276069600,1.47898957,30540.0,30539.0,0.019647]
[1688276070105,1.48798957,30540.0,30539.0,0.019647]
[1688276070300,1.48798957,30540.0,30539.0,0.00981198]
[1688276071408,1.48798957,30540.0,30539.0,0.01309031]
[1688276072908,1.48798957,30540.0,30538.0,0.24851892]
[1688276073205,1.48798957,30540.0,30539.0,0.019647]
[1688276073206,1.17512441,30540.0,30539.0,0.019647]
[1688276073409,1.48918977,30540.0,30539.0,0.019647]
[1688276073607,1.48018977,30540.0,30539.0,0.019647]
[1688276074003,1.48918977,30540.0,30539.0,0.019647]
[1688276074406,1.48018977,30540.0,30538.0,0.04605252]
[1688276074601,0.31276543,30539.0,30538.0,0.04275063]
[1688276077105,0.31276543,30539.0,30538.0,0.11599559]
[1688276077917,0.31276543,30539.0,30538.0,0.04275063]
[1688276079102,0.31276543,30539.0,30538.0,0.02963691]
[1688276079601,0.31276543,30539.0,30538.0,0.02663691]
[1688276080501,0.31276543,30539.0,30538.0,0.049119]
[1688276081111,0.31276543,30539.0,30538.0,0.029119]
[1688276086615,0.31276543,30539.0,30537.0,0.32714101]
[1688276086811,0.5179,30538.0,30537.0,0.32714101]
[1688276087617,0.5179,30538.0,30537.0,0.30014101]
[1688276089823,0.5179,30538.0,30537.0,0.27391348]
[1688276090022,0.5179,30538.0,30537.0,0.058943]
[1688276090415,0.5179,30538.0,30537.0,0.032203]
[1688276091314,1.110548,30538.0,30537.0,0.039294]
[1688276091628,1.21221343,30538.0,30527.0,0.4108]
[1688276091816,0.2124,30528.0,30527.0,0.430455]
[1688276092222,0.25531473,30528.0,30527.0,0.430455]
[1688276092416,0.25531473,30528.0,30527.0,0.460455]
[1688276092622,0.25531473,30528.0,30527.0,0.478455]
[1688276092820,0.3608,30533.0,30527.0,0.430455]
[1688276093012,0.2124,30532.0,30529.0,0.019654]
[1688276093208,0.09684132,30532.0,30529.0,0.03788369]
[1688276093412,0.09684132,30532.0,30529.0,0.019654]
[1688276093718,0.13012366,30533.0,30530.0,0.01822969]
[1688276093928,0.2124,30532.0,30531.0,0.019653]
[1688276094119,0.4248,30532.0,30531.0,0.019653]
[1688276094316,0.13012366,30533.0,30531.0,0.019653]
[1688276094518,0.423,30532.0,30531.0,0.019653]
[1688276094822,0.2124,30532.0,30531.0,0.019653]
[1688276095215,0.30229131,30534.0,30531.0,0.037653]
[1688276095415,0.4248,30532.0,30531.0,0.037653]
[1688276095611,0.30229131,30534.0,30531.0,0.067653]
[1688276095927,0.4235,30532.0,30531.0,0.067653]
[1688276096127,0.09597478,30532.0,30531.0,0.067653]
[1688276096422,0.07074087,30534.0,30531.0,0.067653]
[1688276096724,0.07074087,30534.0,30532.0,0.01884945]
[1688276096925,0.10166543,30536.0,30533.0,0.019651]
[1688276097125,0.2124,30534.0,30533.0,0.019651]
[1688276097326,0.43220603,30537.0,30533.0,0.019651]
[1688276097521,0.3305406,30537.0,30533.0,0.049651]
[1688276097822,1.0,30537.0,30534.0,0.03707914]
[1688276098027,1.10166543,30537.0,30535.0,0.01965]
[1688276098226,0.09732841,30536.0,30535.0,0.01965]
[1688276098521,1.10166543,30537.0,30535.0,0.01965]
[1688276098723,1.10166543,30537.0,30535.0,0.07324496]
[1688276098724,0.10166543,30537.0,30535.0,0.07324496]
[1688276098936,0.73192017,30538.0,30535.0,0.11112465]
[1688276099223,0.73192017,30538.0,30535.0,0.01965]
[1688276099526,1.0,30537.0,30535.0,0.01965]
[1688276099727,0.211,30536.0,30535.0,0.01965]
[1688276100624,0.24521815,30536.0,30535.0,0.01965]
[1688276101829,0.24521815,30536.0,30535.0,0.03787969]
[1688276102019,0.24521815,30536.0,30535.0,0.01965]
[1688276103525,0.45761815,30536.0,30535.0,0.01965]
[1688276106635,0.45761815,30536.0,30535.0,0.03849945]
[1688276106834,0.45761815,30536.0,30535.0,0.01965]
[1688276107832,0.45761815,30536.0,30535.0,0.01579703]
[1688276108032,0.45761815,30536.0,30535.0,0.01965]
[1688276112037,0.45761815,30536.0,30534.0,0.03474156]
[1688276112222,0.03421815,30536.0,30535.0,0.01965]
[1688276112426,0.45901815,30536.0,30535.0,0.01965]
[1688276113437,0.24661815,30536.0,30535.0,0.01965]
[1688276114735,0.2727137,30536.0,30535.0,0.01965]
[1688276118146,0.2727137,30536.0,30535.0,0.05672914]
[1688276118440,0.23849555,30536.0,30535.0,0.37792914]
[1688276120042,0.23849555,30536.0,30535.0,0.35170914]
[1688276120341,0.23849555,30536.0,30535.0,0.34840862]
[1688276120931,0.23849555,30536.0,30535.0,0.34040889]
[1688276122039,0.23849555,30536.0,30535.0,0.35925834]
[1688276124546,0.23849555,30536.0,30535.0,0.34040889]
[1688276126333,0.23849555,30536.0,30535.0,0.31477425]
[1688276128746,0.23849555,30536.0,30535.0,0.3336237]
[1688276131940,0.23849555,30536.0,30535.0,0.3401237]
[1688276132243,0.2200403,30539.0,30535.0,0.3401237]
[1688276132449,0.11837487,30539.0,30538.0,0.3608]
[1688276132648,0.32957487,30539.0,30538.0,0.3625977]
[1688276132847,0.4312403,30539.0,30538.0,0.3625977]
[1688276133049,0.4312403,30539.0,30538.0,0.38144715]
[1688276133247,0.45799946,30539.0,30538.0,0.68804715]
[1688276133550,0.34011582,30539.0,30538.0,0.68804715]
[1688276134041,0.34011582,30539.0,30538.0,0.36332714]
[1688276134644,0.35896527,30539.0,30538.0,0.28969582]
[1688276134839,0.35896527,30539.0,30538.0,0.30934382]
[1688276136039,0.34011582,30539.0,30538.0,0.30934382]
[1688276136341,0.35896527,30539.0,30538.0,0.30934382]
[1688276137345,0.34011582,30539.0,30538.0,0.31607291]
[1688276137533,0.35896527,30539.0,30538.0,0.27700624]
[1688276138345,0.47684891,30539.0,30538.0,0.27700624]
[1688276138537,0.4950786,30539.0,30538.0,0.20831352]
[1688276138739,0.4950786,30539.0,30538.0,0.08334767]
[1688276138940,0.4950786,30539.0,30538.0,0.04139147]
[1688276139140,0.4950786,30539.0,30538.0,0.03511562]
[1688276139445,0.4950786,30539.0,30537.0,0.04242987]
[1688276139649,0.24679946,30539.0,30538.0,0.019648]
[1688276139849,0.45919946,30539.0,30538.0,0.019648]
[1688276140741,0.4962786,30539.0,30538.0,0.019648]
[1688276141543,0.4962786,30539.0,30538.0,0.01356568]
[1688276143445,0.7086786,30539.0,30538.0,0.01356568]
[1688276143854,0.03707914,30538.0,30537.0,0.02999555]
[1688276144055,0.24807914,30538.0,30537.0,0.02999555]
[1688276144548,0.24807914,30538.0,30537.0,0.04612145]
[1688276150549,0.24807914,30538.0,30537.0,0.04150931]
[1688276153256,0.22984945,30538.0,30537.0,0.04150931]
[1688276156657,0.22984945,30538.0,30537.0,0.03735838]
[1688276158054,0.29487838,30538.0,30537.0,0.03735838]
[1688276158651,0.31310807,30538.0,30537.0,0.049121]
[1688276159054,0.29487838,30538.0,30537.0,0.049121]
[1688276159866,0.27602893,30538.0,30537.0,0.10351651]
[1688276160258,0.27602893,30538.0,30537.0,0.12236596]
[1688276161165,0.27602893,30538.0,30537.0,0.06797045]
[1688276161761,0.29487838,30538.0,30537.0,0.049121]
[1688276162957,0.29487838,30538.0,30537.0,0.04420891]
[1688276168071,0.27602893,30538.0,30537.0,0.04420891]
[1688276168964,0.27602893,30538.0,30537.0,0.03978802]
[1688276170267,0.29487838,30538.0,30537.0,0.03978802]
[1688276171987,0.31310807,30538.0,30537.0,0.03978802]
[1688276172377,0.31310807,30538.0,30537.0,0.02370327]
[1688276172782,0.31310807,30538.0,30537.0,0.049121]
[1688276173077,0.29487838,30538.0,30537.0,0.033771]
[1688276173274,0.27602893,30538.0,30536.0,0.3515468]
[1688276173491,0.08387838,30538.0,30537.0,0.049121]
[1688276173787,0.29627838,30538.0,30537.0,0.0294389]
[1688276174296,0.31450807,30538.0,30537.0,0.0294389]
[1688276174771,0.29627838,30538.0,30537.0,0.0294389]
[1688276174973,0.29627838,30538.0,30537.0,0.02649502]
[1688276175391,0.27742893,30538.0,30537.0,0.04534447]
[1688276175983,0.27742893,30538.0,30537.0,0.02649502]
[1688276177091,0.27742893,30538.0,30537.0,0.04534447]
[1688276180988,0.29627838,30538.0,30537.0,0.049121]
[1688276181585,0.27742893,30538.0,30537.0,0.05477637]
[1688276183993,0.27742893,30538.0,30537.0,0.023181]
[1688276184194,0.29627838,30538.0,30537.0,0.023181]
[1688276185192,0.27742893,30538.0,30537.0,0.023181]
[1688276185588,0.27742893,30538.0,30537.0,0.02883637]
[1688276186996,0.29627838,30538.0,30536.0,0.66162531]
[1688276187198,0.08387838,30538.0,30537.0,0.049121]
[1688276187397,0.29627838,30538.0,30537.0,0.049121]
[1688276187899,0.27742893,30538.0,30537.0,0.049121]
[1688276190801,0.29627838,30538.0,30537.0,0.049121]
[1688276191691,0.27742893,30538.0,30537.0,0.049121]
[1688276191892,0.58792893,30538.0,30537.0,0.049121]
[1688276192904,0.58792893,30538.0,30537.0,0.04420891]
[1688276193106,0.60677838,30538.0,30537.0,0.04420891]
[1688276194798,0.62500807,30538.0,30536.0,0.72057031]
[1688276195001,0.37552893,30538.0,30537.0,0.049121]
[1688276195194,0.58652893,30538.0,30537.0,0.024121]
[1688276195708,0.62360807,30538.0,30537.0,0.024121]
[1688276196505,0.60537838,30538.0,30537.0,0.024121]
[1688276196706,0.62360807,30538.0,30537.0,0.024121]
[1688276198609,0.62360807,30538.0,30537.0,0.02090037]
[1688276198910,0.60475862,30538.0,30536.0,0.66732362]
[1688276199100,0.23004945,30537.0,30536.0,0.66732362]
[1688276199300,0.23004945,30537.0,30536.0,0.419745]
[1688276199598,0.23004945,30537.0,30536.0,0.393335]
[1688276201114,0.2112,30537.0,30536.0,0.393335]
[1688276202502,0.2112,30537.0,30536.0,0.058945]
[1688276208111,0.2322,30537.0,30536.0,0.058945]
[1688276208412,0.25104945,30537.0,30536.0,0.058945]
[1688276208802,0.26604945,30537.0,30536.0,0.058945]
[1688276209003,0.26604945,30537.0,30536.0,0.033945]
[1688276213404,0.26604945,30537.0,30536.0,0.0368902]
[1688276216523,0.2472,30537.0,30536.0,0.0368902]
[1688276220617,0.2472,30537.0,30536.0,0.0618902]
[1688276226327,0.26542969,30537.0,30536.0,0.05790199]
[1688276226528,0.2472,30537.0,30536.0,0.05790199]
[1688276227136,0.26604945,30537.0,30536.0,0.05790199]
[1688276231040,0.2472,30537.0,30536.0,0.05790199]
[1688276232632,0.2472,30537.0,30536.0,0.05234013]
[1688276239844,0.26604945,30537.0,30536.0,0.04933153]
[1688276240446,0.26604945,30537.0,30536.0,0.02433153]
[1688276241147,0.26604945,30537.0,30535.0,0.38000743]
[1688276241346,0.22984945,30536.0,30535.0,0.38000743]
[1688276244954,0.211,30536.0,30535.0,0.38000743]
[1688276246153,0.211,30536.0,30535.0,0.01920743]
[1688276246362,0.22984945,30536.0,30535.0,0.380449]
[1688276249459,0.211,30536.0,30535.0,0.380449]
[1688276252461,0.211,30536.0,30535.0,0.019649]
[1688276252662,0.211,30536.0,30535.0,0.380449]
[1688276253159,0.22984945,30536.0,30535.0,0.380449]
[1688276253558,0.22984945,30536.0,30535.0,0.019649]
[1688276253763,0.22984945,30536.0,30535.0,0.380449]
[1688276254060,0.22984945,30536.0,30535.0,0.374098]
[1688276259063,0.211,30536.0,30535.0,0.374098]
[1688276260958,0.211,30536.0,30535.0,0.380449]
[1688276262065,0.22984945,30536.0,30535.0,0.380449]
[1688276262965,0.211,30536.0,30535.0,0.43484451]
[1688276263472,0.211,30536.0,30535.0,0.380449]
[1688276266472,0.211,30536.0,30535.0,0.35330185]
[1688276266661,0.211,30536.0,30535.0,0.37295085]
[1688276267971,0.2124,30536.0,30535.0,0.37295085]
[1688276271469,0.23124945,30536.0,30535.0,0.37295085]
[1688276271678,0.23124945,30536.0,30535.0,0.25564085]
[1688276271872,0.23124945,30536.0,30534.0,0.058947]
[1688276271873,0.2124,30536.0,30534.0,0.058947]
[1688276272171,0.56477914,30535.0,30532.0,0.06599023]
[1688276272475,0.56477914,30535.0,30534.0,0.058947]
[1688276272476,0.6761,30535.0,30534.0,0.058947]
[1688276272675,0.92557914,30535.0,30534.0,0.058947]
[1688276273569,1.13797914,30535.0,30534.0,0.058947]
[1688276274168,1.13797914,30535.0,30534.0,0.04780585]
[1688276276271,0.03707914,30534.0,30531.0,0.01965]
[1688276276475,0.6761,30535.0,30533.0,0.058949]
[1688276276777,0.212,30534.0,30533.0,0.058949]
[1688276276979,0.24907914,30534.0,30533.0,0.058949]
[1688276278670,0.24907914,30534.0,30533.0,0.033949]
[1688276280380,0.212,30534.0,30532.0,0.0583783]
[1688276280680,0.24747914,30533.0,30532.0,0.0583783]
[1688276280880,0.22924945,30533.0,30532.0,0.0583783]
[1688276281281,0.24747914,30533.0,30532.0,0.0583783]
[1688276283476,0.24747914,30533.0,30532.0,0.05491388]
[1688276286279,0.24747914,30533.0,30532.0,0.02991388]
[1688276292278,0.22924945,30533.0,30532.0,0.02991388]
[1688276296098,0.24747914,30533.0,30532.0,0.02991388]
[1688276299196,0.24747914,30533.0,30532.0,0.058949]
[1688276299902,0.22924945,30533.0,30532.0,0.058949]
[1688276300105,0.24747914,30533.0,30532.0,0.058949]
[1688276304298,0.22924945,30533.0,30532.0,0.058949]
[1688276306103,0.22924945,30533.0,30532.0,0.046949]
[1688276306901,0.24747914,30533.0,30532.0,0.032949]
[1688276307604,0.22924945,30533.0,30532.0,0.032949]
[1688276307805,0.24747914,30533.0,30532.0,0.032949]
[1688276309005,0.24747914,30533.0,30532.0,0.058949]
[1688276312113,0.22924945,30533.0,30532.0,0.058949]
[1688276313110,0.24747914,30533.0,30532.0,0.058949]
[1688276313710,0.22924945,30533.0,30532.0,0.058949]
[1688276313909,0.22924945,30533.0,30532.0,0.03240685]
[1688276324924,0.22924945,30533.0,30532.0,0.058949]
[1688276331424,0.24747914,30533.0,30532.0,0.032949]
[1688276331637,0.7836,30533.0,30532.0,0.058949]
[1688276332131,0.80182969,30533.0,30532.0,0.058949]
[1688276332333,0.82067914,30533.0,30532.0,0.058949]
[1688276333531,0.61027914,30533.0,30532.0,0.058949]
[1688276337744,0.61027914,30533.0,30532.0,0.033949]
[1688276338942,0.61027914,30533.0,30531.0,0.019651]
[1688276338943,0.2106,30532.0,30531.0,0.019651]
[1688276339247,0.79087914,30532.0,30531.0,0.019651]
[1688276339948,0.79087914,30532.0,30531.0,0.060651]
[1688276340645,0.79087914,30532.0,30531.0,0.04918217]
[1688276341847,0.79087914,30532.0,30531.0,0.04001217]
[1688276342247,1.15167914,30532.0,30531.0,0.04001217]
[1688276342446,1.25334457,30532.0,30531.0,0.05966317]
[1688276342646,1.25334457,30532.0,30531.0,0.03466317]
[1688276342848,1.37122821,30532.0,30531.0,0.05166317]
[1688276344652,1.35299852,30532.0,30531.0,0.05166317]
[1688276344845,1.37122821,30532.0,30531.0,0.05166317]
[1688276346046,1.37122821,30532.0,30531.0,0.04707564]
[1688276346751,1.35299852,30532.0,30531.0,0.04707564]
[1688276347451,1.37122821,30532.0,30531.0,0.04707564]
[1688276352847,1.35299852,30532.0,30531.0,0.04707564]
[1688276353048,1.35299852,30532.0,30531.0,0.017]
[1688276353253,1.35299852,30532.0,30531.0,0.036651]
[1688276353557,1.37122821,30532.0,30531.0,0.036651]
[1688276354055,1.43563202,30532.0,30531.0,0.036651]
[1688276354653,1.43563202,30532.0,30531.0,0.025]
[1688276358046,1.43563202,30532.0,30531.0,0.01582]
[1688276363650,1.41740233,30532.0,30531.0,0.01582]
[1688276364958,1.43563202,30532.0,30531.0,0.01582]
[1688276371871,1.43563202,30532.0,30531.0,0.01560133]
[1688276372054,1.07483202,30532.0,30531.0,0.01560133]
[1688276372250,1.33396659,30532.0,30531.0,0.01560133]
[1688276372855,1.31774838,30532.0,30531.0,0.01560133]
[1688276373665,0.85528295,30532.0,30531.0,0.01560133]
[1688276373856,1.21608295,30532.0,30531.0,0.01560133]
[1688276374666,1.17900381,30532.0,30531.0,0.019651]
[1688276375162,1.19785326,30532.0,30531.0,0.019651]
[1688276375356,1.21608295,30532.0,30531.0,0.019651]
[1688276376057,1.19785326,30532.0,30531.0,0.019651]
[1688276376257,1.21608295,30532.0,30531.0,0.019651]
[1688276380471,1.21608295,30532.0,30531.0,0.01243679]
[1688276381870,0.85528295,30532.0,30531.0,0.01243679]
[1688276382071,1.21608295,30532.0,30531.0,0.01243679]
[1688276382772,1.31774838,30532.0,30531.0,0.01243679]
[1688276384171,0.95694838,30532.0,30531.0,0.01243679]
[1688276384373,1.21608295,30532.0,30531.0,0.01243679]
[1688276384969,1.31774838,30532.0,30531.0,0.01243679]
[1688276385962,1.28066924,30532.0,30531.0,0.01243679]
[1688276386173,0.94846924,30532.0,30531.0,0.01243679]
[1688276386369,0.86565326,30532.0,30531.0,0.01243679]
[1688276387875,0.88388295,30532.0,30531.0,0.01243679]
[1688276388578,0.86565326,30532.0,30531.0,0.01243679]
[1688276389876,0.8650335,30532.0,30530.0,0.05645026]
[1688276390077,0.63580381,30532.0,30531.0,0.019651]
[1688276390277,0.84820381,30532.0,30531.0,0.019651]
[1688276390681,0.86705326,30532.0,30531.0,0.019651]
[1688276391272,0.88528295,30532.0,30531.0,0.019651]
[1688276391479,1.20208295,30532.0,30531.0,0.019651]
[1688276392178,1.30374838,30532.0,30531.0,0.019651]
[1688276393778,1.28551869,30532.0,30531.0,0.019651]
[1688276397080,1.18385326,30532.0,30531.0,0.019651]
[1688276398186,1.20208295,30532.0,30531.0,0.019651]
[1688276398686,1.18385326,30532.0,30531.0,0.019651]